bitfinex/quotes_BTCUSD_20250505
["timestamp","ask_amount","ask_price","bid_price","bid_amount"]
[1746462794187,0.01058817,94445.0,94442.0,0.0105885]
[1746462794399,0.01058817,94445.0,94441.0,0.4091]
[1746462794400,0.01058828,94444.0,94441.0,0.4091]
[1746462794821,0.21176914,94443.0,94441.0,0.4091]
[1746462795049,0.21177018,94442.0,94441.0,0.4091]
[1746462795491,0.21177018,94442.0,94438.0,0.35036]
[1746462795492,0.2117759,94440.0,94438.0,0.36094895]
[1746462795959,0.22235753,94443.0,94438.0,0.36014895]
[1746462796211,0.21177048,94442.0,94439.0,0.22236378]
[1746462796450,0.01058839,94443.0,94439.0,0.01058884]
[1746462796683,0.22235879,94442.0,94438.0,0.36014895]
[1746462796914,0.21177522,94440.0,94438.0,0.57492789]
[1746462797144,0.22236059,94442.0,94438.0,0.57492789]
[1746462797381,0.22236249,94441.0,94438.0,0.56792789]
[1746462798099,0.21177053,94442.0,94439.0,0.22236455]
[1746462798359,0.22236082,94442.0,94439.0,0.01258884]
[1746462798816,0.21177691,94439.0,94438.0,0.34256]
[1746462799082,0.22236242,94441.0,94438.0,0.35514895]
[1746462799299,0.22236316,94441.0,94438.0,0.35514895]
[1746462799517,0.21177469,94440.0,94438.0,0.34256]
[1746462799730,0.2117758,94440.0,94438.0,0.34256]
[1746462799931,0.01058862,94441.0,94438.0,0.34256]
[1746462800145,0.22236113,94441.0,94439.0,0.002]
[1746462800352,0.22236034,94442.0,94439.0,0.2243656]
[1746462800559,0.01058828,94444.0,94441.0,0.01058862]
[1746462800773,0.21175934,94447.0,94445.0,0.21176304]
[1746462801011,0.21173954,94456.0,94449.0,0.21175449]
[1746462801194,0.01058682,94457.0,94450.0,0.21175224]
[1746462801609,0.22232126,94458.0,94450.0,0.21175224]
[1746462801820,0.01672121,94451.0,94450.0,0.21175224]
[1746462802820,0.01672121,94451.0,94450.0,0.22629309]
[1746462804363,0.01672121,94451.0,94450.0,0.26246134]
[1746462806378,0.01672121,94451.0,94450.0,0.26646134]
[1746462806581,0.01672121,94451.0,94450.0,0.26946134]
[1746462806819,0.00011554,94451.0,94450.0,0.26946134]
[1746462807580,0.00011554,94451.0,94450.0,0.67856134]
[1746462811377,0.01672213,94451.0,94450.0,0.67856134]
[1746462812634,0.01672213,94451.0,94450.0,0.67156134]
[1746462812834,0.01654711,94451.0,94450.0,0.67156134]
[1746462815793,0.01058301,94491.0,94480.0,0.01058425]
[1746462816022,0.01058301,94491.0,94487.0,0.21166931]
[1746462816273,0.02588268,94494.0,94488.0,0.56190709]
[1746462816274,0.00208669,94489.0,94488.0,0.56190709]
[1746462816744,0.00208669,94489.0,94488.0,0.57644794]
[1746462817417,0.00208669,94489.0,94488.0,0.61992059]
[1746462817629,0.00208669,94489.0,94488.0,0.63006749]
[1746462818073,0.00208669,94489.0,94488.0,0.73231597]
[1746462818286,0.00208669,94489.0,94488.0,0.64526749]
[1746462819763,0.00208669,94489.0,94488.0,0.63826749]
[1746462820592,0.00208669,94489.0,94488.0,0.63926749]
[1746462821869,0.00208669,94489.0,94488.0,0.62406749]
[1746462822241,0.00208669,94489.0,94488.0,0.62106749]
[1746462822437,0.00208669,94489.0,94488.0,0.62506749]
[1746462822823,0.00208669,94489.0,94488.0,0.63106749]
[1746462825495,0.00208669,94489.0,94488.0,1.04016749]
[1746462825703,0.00208669,94489.0,94488.0,1.44916749]
[1746462826891,0.00208669,94489.0,94488.0,1.03316749]
[1746462827845,0.001,94500.0,94499.0,0.2261833]
[1746462828034,0.001,94500.0,94499.0,0.6352833]
[1746462829618,0.001,94500.0,94499.0,0.74080359]
[1746462830289,0.001,94500.0,94499.0,0.6352833]
[1746462830894,0.001,94500.0,94499.0,0.9854033]
[1746462831117,0.001,94500.0,94499.0,0.9884033]
[1746462832166,0.001,94500.0,94499.0,0.77676085]
[1746462832386,0.001,94500.0,94499.0,0.9884033]
[1746462832811,0.001,94500.0,94499.0,0.9904033]
[1746462833845,0.001,94500.0,94499.0,0.9834033]
[1746462834277,0.001,94500.0,94499.0,1.08892359]
[1746462835129,0.001,94500.0,94499.0,0.9834033]
[1746462835371,0.0311,94518.0,94515.0,0.21160448]
[1746462835584,0.22218224,94517.0,94514.0,0.22218739]
[1746462835899,0.21160509,94516.0,94514.0,0.00784879]
[1746462836125,0.0157,94515.0,94514.0,0.00784879]
[1746462836337,0.0157,94515.0,94513.0,0.35008]
[1746462836338,0.21160886,94514.0,94513.0,0.35008]
[1746462836563,0.22730886,94514.0,94513.0,0.35008]
[1746462837574,0.24270886,94514.0,94513.0,0.35008]
[1746462839281,0.24370886,94514.0,94513.0,0.35008]
[1746462839981,0.0321,94514.0,94513.0,0.35008]
[1746462840503,0.0321,94514.0,94513.0,0.35807985]
[1746462840679,0.24370886,94514.0,94513.0,0.35807985]
[1746462840885,0.24370886,94514.0,94513.0,0.35107985]
[1746462841324,0.24370886,94514.0,94513.0,0.34308]
[1746462842369,0.0321,94514.0,94513.0,0.34308]
[1746462842991,0.24370886,94514.0,94513.0,0.34308]
[1746462843522,0.26030464,94514.0,94513.0,0.34308]
[1746462845568,0.04869578,94514.0,94513.0,0.34308]
[1746462845792,0.26030464,94514.0,94513.0,0.34308]
[1746462846576,0.24370886,94514.0,94513.0,0.34308]
[1746462847993,0.24370886,94514.0,94513.0,0.33608]
[1746462849712,0.26030437,94514.0,94513.0,0.33608]
[1746462852573,0.24303573,94502.0,94501.0,0.4091]
[1746462852789,0.22219165,94513.0,94488.0,0.47841806]
[1746462852790,0.24306484,94489.0,94488.0,0.39351265]
[1746462853223,0.25966362,94489.0,94488.0,0.39351265]
[1746462855544,0.24306484,94489.0,94488.0,0.35004]
[1746462856018,0.26291686,94489.0,94488.0,0.35004]
[1746462856223,0.26291686,94489.0,94488.0,0.35104]
[1746462857072,0.24306484,94489.0,94488.0,0.35104]
[1746462857277,0.24306484,94489.0,94488.0,0.35304]
[1746462857721,0.01058245,94496.0,94491.0,0.21165815]
[1746462857956,0.0157,94498.0,94494.0,0.22223575]
[1746462858182,0.2116383,94501.0,94498.0,0.01058223]
[1746462858374,0.01058178,94502.0,94496.0,0.01058245]
[1746462858375,0.21164459,94499.0,94496.0,0.01058245]
[1746462858587,0.01058167,94503.0,94497.0,0.01058234]
[1746462858795,0.01058156,94504.0,94501.0,0.21163786]
[1746462859027,0.01058156,94504.0,94501.0,0.01058189]
[1746462859243,0.21163374,94503.0,94500.0,0.22222069]
[1746462859471,0.01058167,94503.0,94500.0,0.22222069]
[1746462859747,0.22221738,94503.0,94500.0,0.01058201]
[1746462859946,0.21163797,94501.0,94499.0,0.22222027]
[1746462860151,0.23881431,94503.0,94500.0,0.22222072]
[1746462860398,0.21163688,94502.0,94499.0,0.22222027]
[1746462860613,0.01959693,94503.0,94501.0,0.21163589]
[1746462860823,0.01959693,94503.0,94500.0,0.01058201]
[1746462861036,0.01659693,94503.0,94501.0,0.21163797]
[1746462861246,0.0271786,94503.0,94500.0,0.01058201]
[1746462861715,0.0271786,94503.0,94500.0,0.2222211]
[1746462861912,0.01659693,94503.0,94500.0,0.2222211]
[1746462862339,0.01659693,94503.0,94501.0,0.21163797]
[1746462862776,0.01659693,94503.0,94501.0,0.21263797]
[1746462862960,0.21164169,94500.0,94496.0,0.22223101]
[1746462863211,0.24405364,94494.0,94493.0,0.4091]
[1746462863424,0.24405364,94494.0,94493.0,0.40846]
[1746462865880,0.24405364,94494.0,94493.0,0.41146]
[1746462866328,0.0324,94494.0,94493.0,0.40846]
[1746462866541,0.0163,94494.0,94493.0,0.41046]
[1746462866752,0.21165141,94495.0,94493.0,0.41146]
[1746462866961,0.01058245,94496.0,94493.0,0.63369848]
[1746462867142,0.21165141,94495.0,94493.0,0.41504279]
[1746462867363,0.01058245,94496.0,94493.0,0.003]
[1746462867796,0.01058245,94496.0,94492.0,0.22223921]
[1746462868003,0.01058245,94496.0,94493.0,0.001]
[1746462868209,0.0315,94501.0,94497.0,0.01058234]
[1746462868420,0.21163686,94502.0,94498.0,0.21164469]
[1746462868637,0.22221734,94503.0,94499.0,0.22222246]
[1746462868848,0.01058178,94502.0,94498.0,0.01058223]
[1746462869061,0.21163601,94502.0,94500.0,0.01058201]
[1746462869486,0.01058156,94504.0,94501.0,0.01058189]
[1746462869915,0.01058167,94503.0,94500.0,0.01058201]
[1746462870119,0.21163581,94502.0,94500.0,0.01058201]
[1746462870328,0.01058167,94503.0,94500.0,0.2222207]
[1746462870958,0.01058167,94503.0,94500.0,0.2232207]
[1746462871386,0.01659686,94503.0,94501.0,0.21163611]
[1746462871599,0.01659686,94503.0,94501.0,0.21163784]
[1746462871816,0.21163573,94502.0,94500.0,0.001]
[1746462872644,0.23881216,94503.0,94499.0,0.01058212]
[1746462872900,0.21163597,94502.0,94499.0,0.01058212]
[1746462873123,0.21163597,94502.0,94500.0,0.001]
[1746462873341,0.23881216,94503.0,94500.0,0.21263975]
[1746462873555,0.23881216,94503.0,94500.0,0.21463975]
[1746462873795,0.21163573,94502.0,94500.0,0.003]
[1746462873979,0.21163573,94502.0,94500.0,0.001]
[1746462874191,0.21163797,94501.0,94498.0,0.22122583]
[1746462874545,0.21163849,94501.0,94498.0,0.00958223]
[1746462874752,0.25331751,94502.0,94499.0,0.001]
[1746462874939,0.25331751,94502.0,94499.0,0.22322266]
[1746462875391,0.04168178,94502.0,94499.0,0.22322266]
[1746462875779,0.04168178,94502.0,94500.0,0.001]
[1746462875978,0.25331779,94502.0,94500.0,0.2126398]
[1746462876187,0.25331797,94502.0,94499.0,0.22222266]
[1746462876400,0.04168178,94502.0,94500.0,0.21163956]
[1746462876805,0.25331887,94502.0,94499.0,0.22322266]
[1746462877017,0.0311,94502.0,94501.0,0.21163797]
[1746462877637,0.21162903,94505.0,94502.0,0.21163377]
[1746462877991,0.22220815,94506.0,94503.0,0.22221401]
[1746462878188,0.22220815,94506.0,94503.0,0.01058167]
[1746462878395,0.22221262,94505.0,94502.0,0.22221726]
[1746462879054,0.22220272,94509.0,94507.0,0.21162398]
[1746462879055,0.21162042,94509.0,94507.0,0.21162398]
[1746462879261,0.21162397,94508.0,94506.0,0.01058133]
[1746462879456,0.21162775,94506.0,94504.0,0.01058156]
[1746462879662,0.24332775,94506.0,94504.0,0.01058156]
[1746462879985,0.0317,94506.0,94504.0,0.01058156]
[1746462880209,0.243327,94506.0,94504.0,0.01058156]
[1746462880415,0.0317,94506.0,94504.0,0.01058156]
[1746462881048,0.04829635,94506.0,94504.0,0.22321228]
[1746462881274,0.04829635,94506.0,94504.0,0.21263072]
[1746462881460,0.25992389,94506.0,94504.0,0.001]
[1746462881818,0.21162901,94505.0,94504.0,0.001]
[1746462882025,0.24302901,94505.0,94504.0,0.001]
[1746462883320,0.0312,94502.0,94500.0,0.21164018]
[1746462883527,0.24283574,94502.0,94499.0,0.22222275]
[1746462883857,0.0312,94501.0,94499.0,0.22222275]
[1746462884603,0.0312,94501.0,94499.0,0.22322275]
[1746462884794,0.0312,94501.0,94499.0,0.01158212]
[1746462885018,0.0312,94501.0,94499.0,0.01258212]
[1746462885242,0.0312,94501.0,94499.0,0.01158212]
[1746462885635,0.24283989,94501.0,94499.0,0.001]
[1746462885844,0.24283989,94501.0,94498.0,0.22222287]
[1746462886303,0.24283989,94501.0,94499.0,0.001]
[1746462886639,0.21164108,94500.0,94498.0,0.01058223]
[1746462886845,0.22222457,94499.0,94498.0,0.001]
[1746462887052,0.01058201,94500.0,94498.0,0.21264376]
[1746462887293,0.22222338,94500.0,94498.0,0.001]
[1746462887505,0.21164245,94499.0,94497.0,0.21164618]
[1746462887710,0.22222338,94500.0,94498.0,0.001]
[1746462888078,0.22222338,94500.0,94499.0,0.002]
[1746462888286,0.25372338,94500.0,94498.0,0.001]
[1746462888488,0.21164245,94499.0,94498.0,0.001]
[1746462888691,0.24314245,94499.0,94498.0,0.001]
[1746462889098,0.24315141,94495.0,94494.0,0.40146]
[1746462889981,0.25975017,94495.0,94494.0,0.40146]
[1746462890746,0.26075017,94495.0,94494.0,0.40146]
[1746462891552,0.55165364,94494.0,94493.0,0.35008]
[1746462891752,0.58375364,94494.0,94493.0,0.35008]
[1746462893184,0.58575364,94494.0,94493.0,0.35008]
[1746462894145,0.58775364,94494.0,94493.0,0.35008]
[1746462895484,0.58775364,94494.0,94493.0,0.34308]
[1746462899181,0.21169621,94475.0,94474.0,0.03145919]
[1746462899401,0.21169621,94475.0,94474.0,0.03154588]
[1746462899636,0.21169621,94475.0,94474.0,8.669e-05]
[1746462899840,0.22829762,94475.0,94474.0,8.669e-05]
[1746462900250,0.22829762,94475.0,94474.0,0.03300443]
[1746462900653,0.22829762,94475.0,94474.0,0.00408669]
[1746462901512,0.22829762,94475.0,94474.0,0.035262]
[1746462902409,0.01660141,94475.0,94474.0,0.035262]
[1746462902610,0.22227651,94477.0,94474.0,0.24695835]
[1746462902818,0.21166846,94488.0,94480.0,0.01058425]
[1746462903016,0.21168179,94482.0,94478.0,0.22227242]
[1746462903215,0.21166155,94491.0,94487.0,0.22225279]
[1746462903438,0.2222491,94489.0,94486.0,0.21167087]
[1746462903592,0.01058324,94489.0,94486.0,0.21167087]
[1746462903820,0.01058324,94489.0,94485.0,0.22225726]
[1746462904399,0.01058324,94489.0,94485.0,0.01058369]
[1746462904577,0.22225225,94488.0,94484.0,0.0105838]
[1746462904732,0.22225225,94488.0,94484.0,0.22225977]
[1746462904938,0.22325247,94489.0,94486.0,0.22225328]
[1746462905379,0.22325247,94489.0,94486.0,0.01058357]
[1746462905580,0.22325247,94489.0,94487.0,0.21166933]
[1746462905791,0.21166892,94488.0,94485.0,0.22225577]
[1746462906133,0.22225227,94488.0,94485.0,0.22225577]
[1746462906482,0.21166984,94487.0,94485.0,0.22225577]
[1746462907078,0.22225227,94488.0,94485.0,0.22225577]
[1746462907299,0.21167229,94486.0,94485.0,0.001]
[1746462907500,0.2222506,94488.0,94484.0,0.22225912]
[1746462907699,0.21167018,94487.0,94485.0,0.21167374]
[1746462907898,0.2222506,94488.0,94485.0,0.21267374]
[1746462908122,0.01058335,94488.0,94486.0,0.21167103]
[1746462908327,0.22225084,94488.0,94486.0,0.21167157]
[1746462908530,0.21166285,94490.0,94487.0,0.01058346]
[1746462908785,0.21166049,94491.0,94487.0,0.01058346]
[1746462909076,0.01058313,94490.0,94486.0,0.01058357]
[1746462909265,0.21166612,94489.0,94486.0,0.22225423]
[1746462909439,0.21169173,94477.0,94470.0,0.21170685]
[1746462909642,0.21169173,94477.0,94472.0,0.01058514]
[1746462909861,0.21169173,94477.0,94474.0,0.09121205]
[1746462910183,0.21169173,94477.0,94474.0,0.08062713]
[1746462910773,0.21169173,94477.0,94476.0,0.40346]
[1746462911010,0.22829234,94477.0,94476.0,0.40146]
[1746462911368,0.22829234,94477.0,94476.0,0.40346]
[1746462912155,0.22829234,94477.0,94476.0,0.40746]
[1746462913442,0.01660061,94477.0,94476.0,0.40746]
[1746462913841,0.01660061,94477.0,94476.0,0.61915397]
[1746462914254,0.01660061,94477.0,94476.0,0.40746]
[1746462915379,0.01660061,94477.0,94476.0,0.006]
[1746462915719,0.01660061,94477.0,94476.0,0.21769397]
[1746462915930,0.01660061,94477.0,94476.0,0.006]
[1746462916431,0.01660061,94477.0,94476.0,0.21769397]
[1746462916604,0.22227235,94479.0,94476.0,0.21769397]
[1746462917579,0.22227235,94479.0,94476.0,0.21369397]
[1746462917787,0.22226884,94481.0,94477.0,0.21169045]
[1746462917995,0.01058425,94480.0,94476.0,0.22727866]
[1746462918397,0.21169009,94478.0,94476.0,0.005]
[1746462918749,0.21169173,94477.0,94476.0,0.005]
[1746462918963,0.21169009,94478.0,94476.0,0.005]
[1746462919176,0.21169173,94477.0,94476.0,0.002]
[1746462919347,0.01058436,94479.0,94476.0,0.002]
[1746462919530,0.01058436,94479.0,94476.0,0.005]
[1746462919738,0.01660052,94477.0,94476.0,0.003]
[1746462920117,0.01660052,94477.0,94476.0,0.005]
[1746462920350,0.22829225,94477.0,94476.0,0.003]
[1746462920611,0.22829225,94477.0,94476.0,0.005]
[1746462921294,0.22829225,94477.0,94474.0,0.35024669]
[1746462921295,0.21169621,94475.0,94474.0,0.35024669]
[1746462921507,0.24469621,94475.0,94474.0,0.35024669]
[1746462922349,0.24469621,94475.0,94474.0,0.35124669]
[1746462923212,0.21152818,94475.0,94474.0,0.35124669]
[1746462924587,0.21152818,94475.0,94474.0,0.34424669]
[1746462925042,0.17852818,94475.0,94474.0,0.34424669]
[1746462925264,0.01660052,94477.0,94474.0,0.35483161]
[1746462925460,0.01660052,94477.0,94476.0,0.21169397]
[1746462925837,0.01058369,94485.0,94482.0,0.21167912]
[1746462926049,0.21167669,94484.0,94481.0,0.22226681]
[1746462926231,0.22226049,94484.0,94481.0,0.01058413]
[1746462926426,0.0105838,94484.0,94482.0,0.21168046]
[1746462926626,0.22225479,94487.0,94483.0,0.01058391]
[1746462927055,0.01058391,94483.0,94480.0,0.21168498]
[1746462927255,0.22226224,94483.0,94480.0,0.22226923]
[1746462927500,0.002,94485.0,94482.0,0.01058402]
[1746462927919,0.21367411,94485.0,94482.0,0.22226438]
[1746462928116,0.22225659,94486.0,94483.0,0.21167818]
[1746462928309,0.01058357,94486.0,94483.0,0.01058391]
[1746462928719,0.22225539,94486.0,94484.0,0.21167605]
[1746462928929,0.22225948,94485.0,94482.0,0.2232624]
[1746462929146,0.21167829,94483.0,94482.0,0.001]
[1746462929347,0.22225948,94485.0,94482.0,0.21267996]
[1746462929572,0.01058369,94485.0,94482.0,0.21267996]
[1746462929787,0.2222575,94485.0,94482.0,0.22326398]
[1746462930043,0.21167747,94484.0,94482.0,0.001]
[1746462930236,0.22226127,94484.0,94480.0,0.22226851]
[1746462930486,0.0105838,94484.0,94483.0,0.001]
[1746462931112,0.0105838,94484.0,94482.0,0.001]
[1746462931298,0.22226185,94484.0,94482.0,0.001]
[1746462931530,0.01660024,94485.0,94483.0,0.21167829]
[1746462931772,0.01660024,94485.0,94484.0,0.21167605]
[1746462932640,0.01660024,94485.0,94484.0,0.20467605]
[1746462934692,0.01660024,94485.0,94484.0,0.20567605]
[1746462935295,0.01660024,94485.0,94484.0,0.20467605]
[1746462935503,0.01660024,94485.0,94484.0,0.20509459]
[1746462935767,0.01660024,94485.0,94484.0,0.20609459]
[1746462936180,0.01660024,94485.0,94484.0,0.22063544]
[1746462936792,0.22224273,94492.0,94489.0,0.21166334]
[1746462937142,0.01058279,94493.0,94490.0,0.21166255]
[1746462937343,0.22223594,94495.0,94491.0,0.22224121]
[1746462937603,0.01058279,94493.0,94490.0,0.01058313]
[1746462937946,0.2222453,94491.0,94487.0,0.01058346]
[1746462938095,0.2377453,94491.0,94488.0,0.01058335]
[1746462938299,0.01058279,94493.0,94490.0,0.2116626]
[1746462938687,0.21165782,94494.0,94491.0,0.01058301]
[1746462939084,0.21165782,94494.0,94492.0,0.00040062]
[1746462939453,0.21165782,94494.0,94491.0,0.01058301]
[1746462939454,0.21165782,94494.0,94491.0,0.2222414]
[1746462939661,0.21165648,94493.0,94490.0,0.21524573]
[1746462939862,0.22223927,94493.0,94490.0,0.21524573]
[1746462940047,0.22224153,94492.0,94489.0,0.22224749]
[1746462940449,0.01058313,94490.0,94487.0,0.22325214]
[1746462940660,0.2222453,94491.0,94488.0,0.01058335]
[1746462940865,0.2222453,94491.0,94488.0,0.22224824]
[1746462941066,0.2116626,94490.0,94487.0,0.01058346]
[1746462941269,0.22224135,94492.0,94489.0,0.21166466]
[1746462941476,0.0105829,94492.0,94489.0,0.21166294]
[1746462941648,0.0415829,94492.0,94488.0,0.01058335]
[1746462942402,0.0259829,94492.0,94490.0,0.21166235]
[1746462942618,0.23764119,94492.0,94491.0,0.0117295]
[1746462942814,0.25324119,94492.0,94491.0,0.0117295]
[1746462944776,0.25324119,94492.0,94491.0,0.0127295]
[1746462945215,0.25324119,94492.0,94491.0,0.0117295]
[1746462945398,0.25324119,94492.0,94491.0,0.0127295]
[1746462946621,0.24265812,94492.0,94491.0,0.0127295]
[1746462946837,0.24265812,94492.0,94491.0,0.01156284]
[1746462949237,0.24265812,94492.0,94491.0,0.001]
[1746462949433,0.24265812,94492.0,94491.0,0.01126069]
[1746462953901,0.24265812,94492.0,94491.0,0.0102888]
[1746462956512,0.01058279,94493.0,94491.0,0.0102888]
[1746462956721,0.01659882,94492.0,94491.0,0.0102888]
[1746462958098,0.22825694,94492.0,94491.0,0.0102888]
[1746462958294,0.01659882,94492.0,94491.0,0.22194916]
[1746462958500,0.01659882,94492.0,94491.0,0.23649001]
[1746462958713,0.010581,94509.0,94504.0,0.22221142]
[1746462959025,0.01058089,94510.0,94505.0,0.0199002]
[1746462959175,0.01058089,94510.0,94505.0,0.00931875]
[1746462959176,0.21162677,94506.0,94505.0,0.00931875]
[1746462959377,0.2222081,94506.0,94502.0,0.01058178]
[1746462959580,0.01058145,94505.0,94503.0,0.00931574]
[1746462959763,0.21163125,94504.0,94501.0,0.2222198]
[1746462959963,0.22234757,94505.0,94502.0,0.22221721]
[1746462960216,0.22234757,94505.0,94503.0,0.21163299]
[1746462960418,0.00013641,94505.0,94504.0,0.00931724]
[1746462960619,0.00013641,94505.0,94504.0,0.22094849]
[1746462960819,0.22836193,94505.0,94504.0,0.00931724]
[1746462961014,0.22836193,94505.0,94504.0,0.00831724]
[1746462961194,0.22836193,94505.0,94502.0,0.03801036]
[1746462961195,0.01773292,94505.0,94502.0,0.03801036]
[1746462961394,0.01773292,94505.0,94503.0,0.21985642]
[1746462961792,0.01773292,94505.0,94503.0,0.21985718]
[1746462962641,0.01773292,94505.0,94504.0,0.21163125]
[1746462962805,0.01873292,94505.0,94504.0,0.21985671]
[1746462963395,0.01673292,94505.0,94504.0,0.21985671]
[1746462964119,0.01673292,94505.0,94504.0,0.23439756]
[1746462964323,0.01673292,94505.0,94504.0,0.25119756]
[1746462965322,0.01673292,94505.0,94504.0,0.66915756]
[1746462965539,0.01673292,94505.0,94504.0,1.00915756]
[1746462965793,0.00013641,94505.0,94504.0,1.01015756]
[1746462966467,0.00013641,94505.0,94504.0,1.00915756]
[1746462966675,0.00013641,94505.0,94504.0,1.00815756]
[1746462967116,0.00013641,94505.0,94504.0,1.01415756]
[1746462967340,0.00013641,94505.0,94504.0,1.11967785]
[1746462967764,0.00013641,94505.0,94504.0,1.01415756]
[1746462968406,0.01257876,94529.0,94526.0,0.22215917]
[1746462968627,0.21157784,94528.0,94527.0,0.00812447]
[1746462968847,0.22216069,94527.0,94524.0,0.01057932]
[1746462969058,0.22216069,94527.0,94525.0,0.00812145]
[1746462969689,0.0315,94526.0,94525.0,0.00812145]
[1746462969905,0.25366237,94526.0,94523.0,0.01057943]
[1746462970108,0.25366237,94526.0,94525.0,0.00812145]
[1746462970313,0.25366237,94526.0,94524.0,0.00811995]
[1746462970517,0.25366237,94526.0,94525.0,0.00812145]
[1746462970759,0.25366237,94526.0,94523.0,0.01869255]
[1746462970959,0.25366237,94526.0,94524.0,0.00811995]
[1746462971161,0.21158423,94525.0,94524.0,0.00811995]
[1746462971376,0.24298423,94525.0,94524.0,0.00811995]
[1746462971639,0.26498423,94525.0,94524.0,0.00811995]
[1746462971826,0.21159766,94519.0,94515.0,0.35004]
[1746462972057,0.21159766,94519.0,94518.0,0.4094436]
[1746462972058,0.24299766,94519.0,94518.0,0.4094436]
[1746462972281,0.24299766,94519.0,94518.0,0.0079836]
[1746462972506,0.24300438,94516.0,94515.0,0.35004]
[1746462972952,0.24300438,94516.0,94515.0,0.35101909]
[1746462973183,0.25959899,94516.0,94515.0,0.35101909]
[1746462973670,0.25959899,94516.0,94515.0,0.35201909]
[1746462973878,0.25959899,94516.0,94515.0,0.35301909]
[1746462975049,0.25959899,94516.0,94515.0,0.35201909]
[1746462975259,0.26159899,94516.0,94515.0,0.35201909]
[1746462975875,0.25959899,94516.0,94515.0,0.35201909]
[1746462976031,0.26259899,94516.0,94515.0,0.35201909]
[1746462976431,0.26259899,94516.0,94515.0,0.35101909]
[1746462976850,0.24900438,94516.0,94515.0,0.35101909]
[1746462977049,0.24600438,94516.0,94515.0,0.35101909]
[1746462977484,0.24900438,94516.0,94515.0,0.35101909]
[1746462978076,0.24884327,94516.0,94515.0,0.35101909]
[1746462980207,0.24884327,94516.0,94515.0,0.34401909]
[1746462980985,0.26544121,94516.0,94515.0,0.34401909]
[1746462981163,0.26544121,94516.0,94515.0,0.00797909]
[1746462981576,0.21166933,94487.0,94486.0,0.04929321]
[1746462981792,0.21167381,94485.0,94483.0,0.35008]
[1746462981994,0.22225604,94486.0,94483.0,0.56175815]
[1746462982194,0.01659906,94485.0,94483.0,0.56175815]
[1746462982429,0.22827334,94485.0,94483.0,0.35008]
[1746462982812,0.22835027,94485.0,94483.0,0.37716694]
[1746462983558,0.22834997,94485.0,94483.0,0.38016694]
[1746462984320,0.22834997,94485.0,94483.0,0.37716694]
[1746462984525,0.0308,94484.0,94483.0,0.3899603]
[1746462984712,0.0308,94484.0,94483.0,0.3929603]
[1746462984900,0.0308,94484.0,94483.0,0.38516694]
[1746462985104,0.0308,94484.0,94483.0,0.35808]
[1746462985105,0.03344597,94484.0,94483.0,0.35808]
[1746462985501,0.03344597,94484.0,94483.0,0.35308]
[1746462985502,0.0308,94484.0,94483.0,0.35308]
[1746462985922,0.0308,94484.0,94483.0,0.35008]
[1746462986127,0.24247605,94484.0,94483.0,0.35008]
[1746462986332,0.24247605,94484.0,94483.0,0.35308]
[1746462986544,0.24247605,94484.0,94483.0,0.35708]
[1746462986545,0.26447605,94484.0,94483.0,0.35708]
[1746462986724,0.24247605,94484.0,94483.0,0.35408]
[1746462986933,0.24347605,94484.0,94483.0,0.35408]
[1746462987141,0.24247605,94484.0,94483.0,0.34708]
[1746462987310,0.24247605,94484.0,94483.0,0.35536928]
[1746462987519,0.24447605,94484.0,94483.0,0.35536928]
[1746462988106,0.24447605,94484.0,94483.0,0.35136928]
[1746462988516,0.24647605,94484.0,94483.0,0.35136928]
[1746462989776,0.26307704,94484.0,94483.0,0.35136928]
[1746462994290,0.26307704,94484.0,94483.0,0.34436928]
[1746462994709,0.23227704,94484.0,94483.0,0.34436928]
[1746462994906,0.02060099,94484.0,94483.0,0.40103384]
[1746462995196,0.02060099,94484.0,94483.0,0.34436928]
[1746462995403,0.01002099,94484.0,94483.0,0.00828928]
[1746462995612,7.693e-05,94485.0,94483.0,0.21996757]
[1746462995787,7.693e-05,94485.0,94484.0,0.21167605]
[1746462996247,7.693e-05,94485.0,94484.0,0.22006181]
[1746462996451,7.693e-05,94485.0,94484.0,0.21906181]
[1746462996709,7.693e-05,94485.0,94484.0,0.23456181]
[1746462996934,7.693e-05,94485.0,94484.0,0.26520266]
[1746462997264,0.00107693,94485.0,94484.0,0.26520266]
[1746462999333,7.693e-05,94485.0,94484.0,0.26520266]
[1746462999549,0.0166757,94485.0,94484.0,0.23660266]
[1746462999743,0.0166757,94485.0,94484.0,0.23960266]
[1746463001495,0.0166757,94485.0,94484.0,0.23260266]
[1746463002661,0.01058313,94490.0,94488.0,0.21166636]
[1746463002867,0.01058313,94490.0,94489.0,0.00817501]
[1746463003643,0.02718184,94490.0,94489.0,0.00817501]
[1746463003815,0.01659871,94490.0,94489.0,0.21983985]
[1746463004029,0.01659871,94490.0,94489.0,0.00817501]
[1746463004653,0.01659871,94490.0,94489.0,0.01017501]
[1746463004946,0.22826131,94490.0,94489.0,0.01017501]
[1746463005158,0.22826131,94490.0,94489.0,0.01117501]
[1746463006208,0.01659871,94490.0,94489.0,0.01117501]
[1746463006410,0.2116607,94491.0,94489.0,0.01117501]
[1746463007360,0.2116626,94490.0,94489.0,0.01017501]
[1746463007549,0.2116626,94490.0,94489.0,0.00817501]
[1746463007695,0.2116626,94490.0,94489.0,0.01017501]
[1746463008177,0.2116607,94491.0,94489.0,0.01017501]
[1746463008397,0.22221694,94503.0,94496.0,0.01058245]
[1746463008606,0.01058223,94498.0,94494.0,0.2116515]
[1746463008805,0.2116492,94496.0,94494.0,0.01058268]
[1746463008940,0.21164917,94496.0,94495.0,0.00818405]
[1746463009347,0.22222938,94497.0,94494.0,0.21165318]
[1746463009551,0.0271803,94496.0,94495.0,0.00865993]
[1746463009968,0.23883072,94496.0,94495.0,0.00865993]
[1746463010686,0.0271803,94496.0,94495.0,0.00865993]
[1746463010887,0.01659785,94496.0,94495.0,0.00865993]
[1746463011117,0.22824702,94496.0,94495.0,0.00865993]
[1746463011392,0.25964702,94496.0,94495.0,0.00865993]
[1746463011611,0.25964702,94496.0,94484.0,0.35012]
[1746463011612,0.24306484,94489.0,94484.0,0.35012]
[1746463011795,0.58306484,94489.0,94484.0,0.35012]
[1746463012025,0.58306484,94489.0,94488.0,0.00876052]
[1746463012234,0.58306484,94489.0,94488.0,0.00013641]
[1746463013023,0.61039038,94489.0,94488.0,0.00013641]
[1746463013214,0.60739038,94489.0,94488.0,0.00013641]
[1746463013590,0.61139038,94489.0,94488.0,0.00013641]
[1746463013960,0.61639038,94489.0,94488.0,0.00013641]
[1746463014166,0.62039038,94489.0,94488.0,0.00013641]
[1746463014388,0.61539038,94489.0,94488.0,0.00013641]
[1746463014852,0.61939038,94489.0,94488.0,0.00013641]
[1746463015512,0.21173006,94460.0,94457.0,0.03399884]
[1746463015762,0.21173006,94460.0,94457.0,0.03407577]
[1746463015961,0.22231245,94462.0,94459.0,0.22231813]
[1746463016290,0.22230431,94466.0,94462.0,0.21172512]